lending/lending_fUSD_20260328
["ID","MTS","AMOUNT","RATE_DAILY","PERIOD"]
[418986430,1774712985579,-500.0,0.00012335,2]
[418986431,1774712985609,-500.0,0.00012335,2]
[418986432,1774712985636,-500.0,0.00012335,2]
[418986433,1774712985666,-500.0,0.00012335,2]
[418986434,1774712985694,-500.0,0.00012335,2]
[418986435,1774712985722,-500.0,0.00012335,2]
[418986436,1774712985751,-500.0,0.00012335,2]
[418986437,1774712985779,-557.62061606,0.00012335,2]
[418986438,1774712985799,-500.0,0.00012335,2]
[418986439,1774712985818,-608.367194,0.00012335,2]
[418986440,1774712985841,-1913.37275602,0.00012336,2]
[418986441,1774712985882,-10000.0,0.00012336,2]
[418986442,1774712985913,-10000.0,0.00012336,2]
[418986443,1774712985945,-10000.0,0.00012336,2]
[418986444,1774712986021,-10000.0,0.00012336,2]
[418986445,1774712986431,-274.1556779,0.00012303,2]
[418986446,1774712986457,-9725.8443221,0.00012336,2]
[418986447,1774712986995,-10000.0,0.00012336,2]
[418986448,1774712987399,-10000.0,0.00012336,2]
[418986449,1774712987984,-10000.0,0.00012336,2]
[418986450,1774712988352,-10000.0,0.00012336,2]
[418986451,1774712988829,-10000.0,0.00012336,2]
[418986452,1774712989157,-10000.0,0.00012336,2]
[418986453,1774712989655,-10000.0,0.00012336,2]
[418986454,1774712990141,-10000.0,0.00012336,2]
[418986455,1774712990795,-10000.0,0.00012336,2]
[418986456,1774712990974,-10000.0,0.00012336,2]
[418986457,1774712991539,-10000.0,0.00012336,2]
[418986458,1774712992099,-10000.0,0.00012336,2]
[418986459,1774712992459,-10000.0,0.00012336,2]
[418986460,1774712992890,-10000.0,0.00012336,2]
[418986461,1774712993537,-10000.0,0.00012336,2]
[418986462,1774712994056,-10000.0,0.00012336,2]
[418986463,1774712994450,-10000.0,0.00012336,2]
[418986464,1774712994913,-10000.0,0.00012336,2]
[418986465,1774712995317,-10000.0,0.00012336,2]
[418986466,1774712996182,-10000.0,0.00012336,2]
[418986467,1774712996608,-10000.0,0.00012336,2]
[418986468,1774712997558,-10000.0,0.00012336,2]
[418986469,1774712998174,-10000.0,0.00012336,2]
[418986470,1774712998975,-10000.0,0.00012336,2]
[418986471,1774713007393,-300.0,0.00012335,2]
[418986472,1774713007418,-1200.0,0.00012335,2]
[418986473,1774713007441,-299.0,0.00012335,2]
[418986474,1774713007467,-5027.0,0.00012336,2]
[418986475,1774713015605,150.0,0.00012294,2]
[418986476,1774713015781,150.0,0.00012294,2]
[418986477,1774713016068,200.0,0.00012294,2]
[418986482,1774713031953,-1584.72581846,0.00012336,2]
[418986483,1774713031965,-459.735,0.00012336,2]
[418986484,1774713031980,-829.38668649,0.00012336,2]
[418986485,1774713031999,-6643.2124147,0.00012336,2]
[418986486,1774713032011,-653.50259332,0.00012336,2]
[418986497,1774713035705,-423.63930811,0.00012336,2]
[418986498,1774713035719,-87510.77387924,0.00012336,2]
[418986499,1774713035732,-328.625,0.00012336,2]
[418986503,1774713040171,-60530.80792671,0.00012336,2]
[418986504,1774713040183,-1155.98048398,0.00012336,2]
[418986505,1774713040198,-22979.5758154,0.00012336,2]
[418986506,1774713040280,-11113.4994669,0.00012336,2]
[418986507,1774713040292,-3208.1427017,0.00012336,2]
[418986508,1774713040303,-1702.33367728,0.00012336,2]
[418986509,1774713040619,-73630.11943155,0.00012336,2]
[418986510,1774713040883,-252.23533749,0.00012336,2]
[418986511,1774713040895,-720.215,0.00012336,2]
[418986512,1774713040959,-1121.3155862,0.00012336,2]
[418986513,1774713040972,-19972.00000002,0.00012336,2]
[418986528,1774713042900,-590.07215444,0.00012336,2]
[418986529,1774713042912,-85368.92467933,0.00012336,2]
[418986530,1774713042924,-3103.57209923,0.00012336,2]
[418986531,1774713042935,-1057.47540344,0.00012336,2]
[418986532,1774713042947,-1000.18778537,0.00012336,2]
[418986533,1774713042958,-865.69,0.00012336,2]
[418986534,1774713042972,-2779.31528384,0.00012336,2]
[418986535,1774713042983,-301.446,0.00012336,2]
[418986536,1774713042994,-671.07308538,0.00012336,2]
[418986537,1774713043005,-749.73961196,0.00012336,2]
[418986538,1774713043017,-1401.9124575,0.00012336,2]
[418986539,1774713043106,-140899.99999994,0.00012336,2]
[418986540,1774713043118,-3600.0,0.00012336,2]
[418986541,1774713043179,-11991.61838017,0.00012336,2]
[418986581,1774713050142,-643560.59278936,0.00012336,2]
[418986582,1774713050152,-150.0,0.00012336,2]
[418986583,1774713050162,-166.66,0.00012403,2]
[418986584,1774713050172,-250.0,0.00012426,2]
[418986585,1774713050181,-2000.0,0.00012708,2]
[418986586,1774713050191,-259.22836595,0.00012713,2]
[418986587,1774713050201,-151.0,0.00012715,2]
[418986588,1774713050210,-6703.95611399,0.00012723,2]
[418986589,1774713050219,-14056.15120218,0.00012723,2]
[418986590,1774713050230,-166.66,0.00012787,2]
[418986591,1774713050239,-335.09,0.00013101,2]
[418986592,1774713050248,-6703.95611399,0.0001312,2]
[418986593,1774713050258,-14056.15120218,0.0001312,2]
[418986594,1774713050268,-3806.18,0.00013154,2]
[418986595,1774713050277,-3342.55,0.00013154,2]
[418986596,1774713050287,-150.99,0.00013154,2]
[418986597,1774713050296,-9999.99,0.00013154,2]
[418986598,1774713050306,-166.66,0.00013171,2]
[418986599,1774713050315,-150.0,0.000133,2]
[418986600,1774713050325,-7840.91,0.000133,2]
[418986601,1774713050336,-9999.99,0.000133,2]
[418986602,1774713050345,-354.48,0.00013398,2]
[418986603,1774713050355,-764.34,0.00013398,2]
[418986604,1774713050364,-255.0,0.0001342,2]
[418986605,1774713050374,-6703.95611399,0.00013517,2]
[418986606,1774713050383,-14056.15120218,0.00013517,2]
[418986607,1774713050392,-280.0,0.00013537,2]
[418986608,1774713050402,-166.66,0.00013555,2]
[418986609,1774713050411,-165.56177113,0.00013559,2]
[418986610,1774713050420,-4999.97,0.00013559,2]
[418986611,1774713050429,-250.0,0.00013559,2]
[418986612,1774713050439,-260.74095275,0.00013569,2]
[418986613,1774713050448,-250.0,0.00013569,2]
[418986614,1774713050458,-1680.0,0.00013569,2]
[418986615,1774713050467,-630.0,0.00013689,2]
[418986616,1774713050476,-500.0,0.00013698,2]
[418986617,1774713050485,-500.0,0.00013698,2]
[418986618,1774713050495,-500.0,0.00013698,2]
[418986619,1774713050504,-500.0,0.00013698,2]
[418986620,1774713050513,-500.0,0.00013698,2]
[418986621,1774713050522,-500.0,0.00013698,2]
[418986622,1774713050531,-500.0,0.00013698,2]
[418986623,1774713050540,-500.0,0.00013698,2]
[418986624,1774713050550,-500.0,0.00013698,2]
[418986625,1774713050559,-500.0,0.00013698,2]
[418986626,1774713050568,-500.0,0.00013698,2]
[418986627,1774713050578,-500.0,0.00013698,2]
[418986628,1774713050589,-500.0,0.00013698,2]
[418986629,1774713050598,-500.0,0.00013698,2]
[418986630,1774713050607,-500.0,0.00013698,2]
[418986631,1774713050617,-257.73702656,0.00013698,2]
[418986632,1774713050627,-906.68,0.00013698,2]
[418986633,1774713050636,-500.0,0.00013698,2]
[418986634,1774713050645,-500.0,0.00013698,2]
[418986635,1774713050655,-500.0,0.00013698,2]
[418986636,1774713050665,-500.0,0.00013698,2]
[418986637,1774713050674,-500.0,0.00013698,2]
[418986638,1774713050683,-604.01853711,0.00013698,2]
[418986639,1774713050693,-500.0,0.00013698,2]
[418986640,1774713050703,-500.0,0.00013698,2]
[418986641,1774713050713,-500.0,0.00013698,2]
[418986642,1774713050722,-472.64060135,0.00013698,2]
[418986643,1774713050732,-500.0,0.00013698,2]
[418986644,1774713050741,-500.0,0.00013698,2]
[418986645,1774713050751,-500.0,0.00013698,2]
[418986646,1774713050760,-500.0,0.00013698,2]
[418986647,1774713050770,-500.0,0.00013698,2]
[418986648,1774713050779,-500.0,0.00013698,2]
[418986649,1774713050788,-500.0,0.00013698,2]
[418986650,1774713050798,-500.0,0.00013698,2]
[418986651,1774713050807,-500.0,0.00013698,2]
[418986652,1774713050817,-500.0,0.00013698,2]
[418986653,1774713050827,-500.0,0.00013698,2]
[418986654,1774713050838,-500.0,0.00013698,2]
[418986655,1774713050847,-500.0,0.00013699,2]
[418986656,1774713050856,-500.0,0.00013699,2]
[418986657,1774713050866,-500.0,0.00013699,2]
[418986658,1774713050875,-500.0,0.00013699,2]
[418986659,1774713050885,-2810.71,0.000137,2]
[418986660,1774713050894,-4733.12,0.000137,2]
[418986661,1774713050904,-3606.94,0.000137,2]
[418986662,1774713050914,-617.34,0.000137,2]
[418986663,1774713050923,-500.0,0.000137,2]
[418986664,1774713050932,-500.66013703,0.000137,2]
[418986665,1774713050942,-500.0,0.000137,2]
[418986666,1774713050951,-500.0,0.000137,2]
[418986667,1774713050960,-500.0,0.000137,2]
[418986668,1774713050969,-500.37169193,0.000137,2]
[418986669,1774713050980,-1000.0,0.000139,5]
[418986670,1774713050990,-6703.95611399,0.00013914,2]
[418986671,1774713050999,-14056.15120218,0.00013914,2]
[418986672,1774713051009,-906.68,0.00013972,2]
[418986673,1774713051020,-517.0,0.00014,2]
[418986674,1774713051031,-2000.0,0.0001412,2]
[418986675,1774713051040,-248.24,0.00014185,2]
[418986676,1774713051049,-906.68,0.00014246,2]
[418986677,1774713051058,-1000.0,0.00014247,2]
[418986678,1774713051066,-1000.0,0.00014247,2]
[418986679,1774713051075,-353.45675013,0.00014248,2]
[418986680,1774713051085,-1000.0,0.00014248,2]
[418986681,1774713051095,-6703.95611399,0.00014312,2]
[418986682,1774713051104,-14056.15120218,0.00014312,2]
[418986683,1774713051114,-500.0,0.00014423,2]
[418986684,1774713051124,-37140.18,0.00014424,2]
[418986685,1774713051133,-1716.5568014,0.000145,2]
[418986686,1774713051142,-906.68,0.0001452,2]
[418986687,1774713051151,-500.0,0.00014596,2]
[418986688,1774713051160,-500.0,0.00014596,2]
[418986689,1774713051170,-500.0,0.00014596,2]
[418986690,1774713051180,-466343.2485359,0.00014597,2]
[418986691,1774713051189,-196.7957,0.000146,2]
[418986692,1774713051198,-352.95856391,0.000146,2]
[418986693,1774713051207,-176.30167223,0.000146,2]
[418986694,1774713051217,-5504.66492098,0.000146,2]
[418986695,1774713051227,-274.15567789,0.00014602,2]
[418986696,1774713051236,-433.0,0.00014604,2]
[418986697,1774713051245,-259.22836595,0.00014678,2]
[418986698,1774713051255,-500.0,0.00014687,2]
[418986699,1774713051264,-500.0,0.00014687,2]
[418986700,1774713051273,-500.0,0.00014687,2]
[418986701,1774713051283,-500.0,0.00014687,2]
[418986702,1774713051292,-2500000.0,0.00014688,2]
[418986703,1774713051301,-2218.1,0.000147,2]
[418986704,1774713051311,-16717.74,0.000147,2]
[418986705,1774713051320,-6703.95611399,0.00014709,2]
[418986706,1774713051329,-14056.15120218,0.00014709,2]
[418986707,1774713051339,-83058.53158095,0.00014788,2]
[418986708,1774713051348,-906.68,0.00014794,2]
[418986709,1774713051357,-1500.0,0.00014795,2]
[418986710,1774713051366,-1500.0,0.00014795,2]
[418986711,1774713051375,-1500.0,0.00014796,2]
[418986712,1774713051385,-1400.0,0.000148,5]
[418986713,1774713051394,-1800.0,0.000149,5]
[418986714,1774713051403,-2351.0,0.00014926,2]
[418986715,1774713051412,-1716.55680135,0.0001498,2]
[418986716,1774713051422,-300.0,0.00015,2]
[418986717,1774713051431,-500.0,0.00015014,2]
[418986718,1774713051441,-906.68,0.00015068,2]
[418986719,1774713051450,-443.61,0.00015068,2]
[418986720,1774713051459,-6703.95611399,0.00015106,2]
[418986721,1774713051470,-14056.15120218,0.00015106,2]
[418986722,1774713051480,-1887.14,0.00015122,2]
[418986723,1774713051489,-1000.0,0.00015144,2]
[418986724,1774713051499,-225.14,0.00015151,2]
[418986725,1774713051508,-3240.0,0.00015196,2]
[418986726,1774713051518,-160.0,0.00015221,7]
[418986727,1774713051527,-906.68,0.00015342,2]
[418986728,1774713051537,-1140.03697913,0.00015342,2]
[418986729,1774713051546,-2000.0,0.00015342,2]
[418986730,1774713051556,-2000.0,0.00015344,2]
[418986731,1774713051565,-1716.55680135,0.0001546,2]
[418986732,1774713051575,-168.18,0.00015484,2]
[418986733,1774713051585,-6703.95611399,0.00015503,2]
[418986734,1774713051594,-14056.15120218,0.00015503,2]
[418986735,1774713051603,-2000.0,0.00015532,2]
[418986736,1774713051612,-667.0,0.00015563,2]
[418986737,1774713051622,-906.68,0.00015616,2]
[418986738,1774713051631,-959.64475997,0.00015632,2]
[418986739,1774713051640,-160.0,0.00015632,2]
[418986740,1774713051649,-160.0,0.00015632,2]
[418986741,1774713051659,-160.0,0.00015674,2]
[418986742,1774713051668,-160.0,0.0001568,7]
[418986743,1774713051677,-160.0,0.0001568,7]
[418986744,1774713051687,-186.589342,0.0001568,7]
[418986745,1774713051696,-284.699151,0.0001568,7]
[418986746,1774713051705,-667.0,0.0001571,2]
[418986747,1774713051715,-1000.0,0.00015735,2]
[418986748,1774713051724,-150.0,0.00015735,2]
[418986749,1774713051734,-1600.0,0.00015739,2]
[418986750,1774713051743,-150.0,0.00015749,2]
[418986751,1774713051753,-1000.0,0.00015752,2]
[418986752,1774713051762,-443.61,0.00015753,2]
[418986753,1774713051772,-1039.94150256,0.00015757,2]
[418986754,1774713051782,-150.0,0.00015758,2]
[418986755,1774713051905,-667.0,0.00015809,2]
[418986756,1774713051915,-1000.0,0.00015881,2]
[418986757,1774713051925,-736.0,0.00015887,2]
[418986758,1774713051934,-906.68,0.0001589,2]
[418986759,1774713051944,-2000.0,0.0001589,2]
[418986760,1774713051953,-250.0,0.0001589,2]
[418986761,1774713051963,-2500.0,0.0001589,2]
[418986762,1774713051973,-2500.0,0.00015892,2]
[418986763,1774713051982,-258.1903,0.000159,2]
[418986764,1774713051992,-6703.95611399,0.000159,2]
[418986765,1774713052001,-14056.15120218,0.000159,2]
[418986766,1774713052012,-150.0,0.00015924,2]
[418986767,1774713052021,-164.18654523,0.00015924,2]
[418986768,1774713052031,-1716.55680135,0.00015939,2]
[418986769,1774713052041,-502.82104144,0.00015973,2]
[418986770,1774713052052,-500.0,0.00015973,2]
[418986771,1774713052061,-500.0,0.00015973,2]
[418986772,1774713052072,-500.0,0.00015973,2]
[418986773,1774713052081,-500.0,0.00015973,2]
[418986774,1774713052090,-500.0,0.00015973,2]
[418986775,1774713052099,-502.34122551,0.00015973,2]
[418986776,1774713052109,-500.0,0.00015973,2]
[418986777,1774713052118,-151.0,0.0001598,2]
[418986778,1774713052128,-500.0,0.00015982,2]
[418986779,1774713052139,-500.0,0.00015982,2]
[418986780,1774713052148,-500.0,0.00015982,2]
[418986781,1774713052158,-500.0,0.00015982,2]
[418986782,1774713052167,-500.0,0.00015982,2]
[418986783,1774713052177,-500.0,0.00015982,2]
[418986784,1774713052186,-1000.0,0.00015996,2]
[418986785,1774713052196,-1000.0,0.00015996,2]
[418986786,1774713052205,-1000.0,0.00015996,2]
[418986787,1774713052215,-1000.0,0.00015996,2]
[418986788,1774713052224,-1000.0,0.00015996,2]
[418986789,1774713052233,-1000.0,0.00015996,2]
[418986790,1774713052243,-1000.0,0.00015996,2]
[418986791,1774713052253,-1000.0,0.00015996,2]
[418986792,1774713052262,-500.0,0.00015999,2]
[418986793,1774713052271,-500.0,0.00015999,2]
[418986794,1774713052282,-269311.17237648,0.00016,2]
[418986795,1774713052291,-49046.58642393,0.00016,2]
[418986796,1774713052301,-2602.51281655,0.00016,2]
[418986797,1774713052311,-417.10337312,0.00016,2]
[418986798,1774713052321,-474.0,0.00016024,2]
[418986799,1774713052332,-441.51,0.000161,30]
[418986800,1774713052341,-617.34,0.000161,2]
[418986801,1774713052352,-417.10337312,0.000161,2]
[418986802,1774713052362,-855.0,0.00016111,2]
[418986803,1774713052372,-474.0,0.00016115,2]
[418986804,1774713052382,-9999.99,0.00016116,2]
[418986805,1774713052391,-474.0,0.00016154,2]
[418986806,1774713052401,-906.68,0.00016164,2]
[418986807,1774713052411,-474.0,0.00016192,2]
[418986808,1774713052421,-3606.94,0.000162,2]
[418986809,1774713052431,-417.10337312,0.000162,2]
[418986810,1774713052442,-474.0,0.00016248,2]
[418986811,1774713052452,-474.0,0.00016265,2]
[418986812,1774713052464,-439.14,0.00016266,2]
[418986813,1774713052474,-5162.02,0.00016309,2]
[418986814,1774713052483,-474.0,0.00016326,2]
[418986815,1774713052493,-200.0,0.0001634,2]
[418986816,1774713052502,-474.0,0.00016373,2]
[418986817,1774713052511,-474.0,0.00016391,2]
[418986818,1774713052520,-4733.12,0.000164,2]
[418986819,1774713052529,-150.0,0.000164,2]
[418986820,1774713052539,-213.0,0.000164,2]
[418986821,1774713052548,-302.46,0.000164,2]
[418986822,1774713052558,-355.08524227,0.000164,2]
[418986823,1774713052567,-3292.0,0.00016418,2]
[418986824,1774713052576,-1716.55680135,0.00016419,2]
[418986825,1774713052587,-906.68,0.00016438,2]
[418986826,1774713052596,-1779.0,0.00016438,2]
[418986827,1774713052605,-1779.0,0.00016438,2]
[418986828,1774713052615,-1779.0,0.00016438,2]
[418986829,1774713052624,-1779.0,0.00016438,2]
[418986830,1774713052634,-1779.0,0.00016438,2]
[418986831,1774713052643,-1779.0,0.00016438,2]
[418986832,1774713052653,-1779.0,0.00016438,2]
[418986833,1774713052663,-1779.0,0.00016438,2]
[418986834,1774713052672,-1779.0,0.00016438,2]
[418986835,1774713052682,-1779.0,0.00016438,2]
[418986836,1774713052692,-1779.0,0.00016438,2]
[418986837,1774713052701,-1779.0,0.00016438,2]
[418986838,1774713052711,-1779.0,0.00016438,2]
[418986839,1774713052720,-1779.0,0.00016438,2]
[418986840,1774713052730,-1779.0,0.00016438,2]
[418986841,1774713052739,-1779.0,0.00016438,2]
[418986842,1774713052748,-1779.0,0.00016438,2]
[418986843,1774713052758,-1779.0,0.00016438,2]
[418986844,1774713052768,-1779.0,0.00016438,2]
[418986845,1774713052776,-1779.0,0.00016438,2]
[418986846,1774713052786,-1779.0,0.00016438,2]
[418986847,1774713052795,-1779.0,0.00016438,2]
[418986848,1774713052805,-1779.0,0.00016438,2]
[418986849,1774713052815,-1789.89856557,0.00016438,2]
[418986850,1774713052824,-2718.26,0.00016438,2]
[418986851,1774713052834,-679.56,0.00016438,2]
[418986852,1774713052843,-150.0,0.00016438,2]
[418986853,1774713052853,-150.0,0.00016438,2]
[418986854,1774713052862,-150.0,0.00016438,2]
[418986855,1774713052873,-150.0,0.00016438,2]
[418986856,1774713052883,-150.0,0.00016438,2]
[418986857,1774713052892,-150.0,0.00016438,2]
[418986858,1774713052901,-150.0,0.00016438,2]
[418986859,1774713052911,-150.0,0.00016438,2]
[418986860,1774713052920,-150.0,0.00016438,2]
[418986861,1774713052930,-150.0,0.00016438,2]
[418986862,1774713052940,-150.0,0.00016438,2]
[418986863,1774713052949,-150.0,0.00016438,2]
[418986864,1774713052960,-150.0,0.00016438,2]
[418986865,1774713052969,-150.0,0.00016438,2]
[418986866,1774713052980,-150.0,0.00016438,2]
[418986867,1774713052990,-150.0,0.00016438,2]
[418986868,1774713052999,-150.0,0.00016438,2]
[418986869,1774713053008,-150.0,0.00016438,2]
[418986870,1774713053017,-150.0,0.00016438,2]
[418986871,1774713053027,-150.0,0.00016438,2]
[418986872,1774713053037,-150.0,0.00016438,2]
[418986873,1774713053048,-150.0,0.00016438,2]
[418986874,1774713053057,-150.0,0.00016438,2]
[418986875,1774713053068,-150.0,0.00016438,2]
[418986876,1774713053081,-2500.0,0.00016438,2]
[418986877,1774713053090,-2500.0,0.00016438,2]
[418986878,1774713053100,-2500.0,0.00016438,2]
[418986879,1774713053109,-2500.0,0.00016438,2]
[418986880,1774713053119,-2500.0,0.00016438,2]
[418986881,1774713053128,-150.0,0.00016438,2]
[418986882,1774713053138,-150.0,0.00016438,2]
[418986883,1774713053147,-150.0,0.00016438,2]
[418986884,1774713053158,-150.0,0.00016438,2]
[418986885,1774713053168,-205.09502043,0.00016438,2]
[418986886,1774713053178,-150.0,0.00016438,2]
[418986887,1774713053189,-150.0,0.00016438,2]
[418986888,1774713053199,-150.0,0.00016438,2]
[418986889,1774713053209,-150.0,0.00016438,2]
[418986890,1774713053219,-150.0,0.00016438,2]
[418986891,1774713053229,-150.0,0.00016438,2]
[418986892,1774713053239,-150.0,0.00016438,2]
[418986893,1774713053249,-150.0,0.00016438,2]
[418986894,1774713053260,-150.0,0.00016438,2]
[418986895,1774713053272,-150.0,0.00016438,2]
[418986896,1774713053283,-150.0,0.00016438,2]
[418986897,1774713053292,-150.0,0.00016438,2]
[418986898,1774713053302,-291.35754839,0.00016438,2]
[418986899,1774713053312,-228.96,0.00016438,2]
[418986900,1774713053322,-443.61,0.00016438,2]
[418986901,1774713053333,-2424.4137184,0.00016438,2]
[418986902,1774713053343,-755.16792343,0.0001644,2]
[418986903,1774713053353,-500.0,0.00016496,2]
[418986904,1774713053364,-500.0,0.00016496,2]
[418986905,1774713053374,-2810.71,0.000165,2]
[418986906,1774713053384,-474.0,0.00016517,2]
[418986907,1774713053393,-474.0,0.00016535,2]
[418986908,1774713053403,-474.0,0.00016574,2]
[418986909,1774713053413,-363.31246982,0.000166,2]
[418986910,1774713053423,-10000.0,0.000166,2]
[418986911,1774713053433,-5000.0,0.00016645,2]
[418986912,1774713053442,-474.0,0.0001668,2]
[418986913,1774713053452,-2218.1,0.000167,2]
[418986914,1774713053463,-16717.74,0.000167,2]
[418986915,1774713053472,-906.74318384,0.00016712,2]
[418986916,1774713053483,-233.7,0.00016712,2]
[418986917,1774713053494,-90672.8719107,0.00016722,2]
[418986918,1774713053505,-1895.254356,0.00016744,7]
[418986919,1774713053515,-2500.0,0.00016744,2]
[418986920,1774713053525,-2500.0,0.00016744,2]
[418986921,1774713053534,-387972.968732,0.00016745,2]
[418986922,1774713053544,-474.0,0.00016746,2]
[418986923,1774713053554,-457.14758966,0.00016759,2]
[418986924,1774713053563,-430.46,0.00016759,2]
[418986925,1774713053572,-814.375195,0.00016762,2]
[418986926,1774713053583,-157.65,0.00016763,2]
[418986927,1774713053591,-667.0,0.00016764,2]
[418986928,1774713053600,-500.0,0.00016767,2]
[418986929,1774713053610,-474.0,0.00016771,2]
[418986930,1774713053619,-423.3939796,0.000168,2]
[418986931,1774713053629,-2000.0,0.000168,2]
[418986932,1774713053640,-259.22836595,0.00016836,2]
[418986933,1774713053650,-474.0,0.00016843,2]
[418986934,1774713053659,-466343.2485359,0.00016846,2]
[418986935,1774713053669,-474.0,0.00016879,2]
[418986936,1774713053679,-300.0,0.000169,6]
[418986937,1774713053690,-274.15567789,0.000169,2]
[418986938,1774713053699,-2000.0,0.000169,2]
[418986939,1774713053708,-160.47,0.00016931,2]
[418986940,1774713053718,-2000.0,0.00016944,2]
[418986941,1774713053727,-265.42361487,0.00016989,2]
[418986942,1774713053737,-765.4838381,0.00016989,2]
[418986943,1774713053747,-151.0,0.00016997,2]
[418986944,1774713053756,-76585.4126392,0.00016999,7]
[418986945,1774713053765,-500.0,0.00016999,2]
[418986946,1774713053775,-500.0,0.00016999,2]
[418986947,1774713053784,-527.96,0.00016999,2]
[418986948,1774713053793,-2500.0,0.00016999,2]
[418986949,1774713053802,-2500.0,0.00016999,2]
[418986950,1774713053812,-2500.0,0.00016999,2]
[418986951,1774713053821,-2500.0,0.00016999,2]
[418986952,1774713053832,-2500.0,0.00016999,2]
[418986953,1774713053841,-2500.0,0.00016999,2]
[418986954,1774713053851,-337.0,0.00017,2]
[418986955,1774713053862,-788.31929485,0.00017,30]
[418986956,1774713053871,-490.0,0.00017,2]
[418986957,1774713053882,-1377513.50613057,0.00017,2]
[418986958,1774713053891,-892.31960295,0.00017,2]
[418986959,1774713053900,-160.0,0.00017,7]
[418986960,1774713053910,-350.0,0.00017,2]
[418986961,1774713053919,-176.0,0.00017,2]
[418986962,1774713053929,-151.0,0.00017,2]
[418986963,1774713053937,-151.0,0.00017,2]
[418986964,1774713054031,-151.0,0.00017,2]
[418986965,1774713054050,-151.0,0.00017,2]
[418986966,1774713054059,-151.0,0.00017,2]
[418986967,1774713054069,-151.0,0.00017,2]
[418986968,1774713054079,-151.0,0.00017,2]
[418986969,1774713054088,-151.0,0.00017,2]
[418986970,1774713054098,-151.0,0.00017,2]
[418986971,1774713054108,-1059.30451652,0.00017,30]
[418986972,1774713054118,-161.336518,0.00017,2]
[418986973,1774713054127,-161.336518,0.00017,2]
[418986974,1774713054137,-161.336518,0.00017,2]
[418986975,1774713054146,-151.0,0.00017,2]
[418986976,1774713054155,-161.336518,0.00017,2]
[418986977,1774713054165,-151.0,0.00017,2]
[418986978,1774713054174,-151.0,0.00017,2]
[418986979,1774713054185,-151.0,0.00017,2]
[418986980,1774713054194,-151.0,0.00017,2]
[418986981,1774713054203,-151.0,0.00017,2]
[418986982,1774713054213,-739.189272,0.00017,2]
[418986983,1774713054223,-739.189272,0.00017,2]
[418986984,1774713054233,-739.189272,0.00017,2]
[418986985,1774713054242,-739.189272,0.00017,2]
[418986986,1774713054252,-1837.713949,0.00017,2]
[418986987,1774713054261,-1837.713949,0.00017,2]
[418986988,1774713054270,-1837.713949,0.00017,2]
[418986989,1774713054280,-1837.713949,0.00017,2]
[418986990,1774713054289,-547.12046,0.00017,2]
[418986991,1774713054298,-547.12046,0.00017,2]
[418986992,1774713054308,-547.12046,0.00017,2]
[418986993,1774713054317,-547.12046,0.00017,2]
[418986994,1774713054327,-339.436127,0.00017,2]
[418986995,1774713054338,-339.436127,0.00017,2]
[418986996,1774713054349,-339.436127,0.00017,2]
[418986997,1774713054358,-339.436127,0.00017,2]
[418986998,1774713054369,-2500.0,0.00017099,2]
[418986999,1774713054378,-89198.97962417,0.000171,2]